bitfinex/quotes_SOLUSD_20250204
["timestamp","ask_amount","ask_price","bid_price","bid_amount"]
[1738650645069,27.53640441,204.94,204.86,27.53640441]
[1738650645245,4.8792,204.95,204.88,27.53640441]
[1738650645443,27.53640441,204.94,204.86,27.53640441]
[1738650646066,27.53640441,204.94,204.84,27.53640441]
[1738650646352,27.53640441,204.92,204.84,27.53640441]
[1738650646569,4.8801,204.91,204.84,27.53640441]
[1738650646753,27.53640441,204.87,204.8,32.51640441]
[1738650646952,27.53640441,204.87,204.8,4.98]
[1738650647977,27.53640441,204.87,204.78,27.53640441]
[1738650648562,4.8813,204.86,204.78,27.53640441]
[1738650649992,4.8813,204.86,204.8,27.53640441]
[1738650652273,4.8813,204.86,204.78,27.56640441]
[1738650652588,27.53640441,204.81,204.78,0.03]
[1738650652786,27.53640441,204.79,204.78,0.03]
[1738650653192,27.53640441,204.81,204.78,0.03]
[1738650653691,4.8828,204.8,204.78,0.03]
[1738650655073,27.53640441,204.83,204.78,0.03]
[1738650655280,4.8816,204.85,204.78,27.56640441]
[1738650655596,4.8813,204.86,204.8,27.53640441]
[1738650656302,6.2423,204.87,204.82,27.53640441]
[1738650656599,4.8806,204.89,204.82,27.53640441]
[1738650656891,27.53640441,204.92,204.84,27.53640441]
[1738650657059,4.8797,204.93,204.84,27.53640441]
[1738650657266,4.8797,204.93,204.86,27.53640441]
[1738650659494,0.063,204.94,204.86,27.53640441]
[1738650659686,4.9426,204.94,204.86,32.41770441]
[1738650659883,0.063,204.94,204.86,32.41770441]
[1738650660087,4.9425,204.94,204.86,27.53640441]
[1738650660304,20.0,204.91,204.84,27.53640441]
[1738650660501,4.9425,204.94,204.74,7.20086489]
[1738650660502,27.53640441,204.86,204.77,27.53640441]
[1738650660996,27.53640441,204.82,204.73,27.53640441]
[1738650661198,27.53640441,204.82,204.75,27.53640441]
[1738650661382,6.0524,204.88,204.74,4.8842]
[1738650661383,33.58880441,204.88,204.81,27.53640441]
[1738650661580,38.46980441,204.88,204.81,27.53640441]
[1738650661889,27.53640441,204.84,204.78,0.03]
[1738650662265,27.53640441,204.82,204.78,0.03]
[1738650662999,0.72708439,204.87,204.78,0.03]
[1738650663000,27.53640441,204.8,204.78,0.03]
[1738650663676,4.883,204.79,204.78,0.03]
[1738650664206,4.8827,204.81,204.78,0.03]
[1738650664409,27.53640441,204.84,204.78,0.03]
[1738650664567,4.8812,204.87,204.81,27.53640441]
[1738650664771,6.0524,204.88,204.83,27.53640441]
[1738650665189,0.063,204.86,204.83,27.53640441]
[1738650665596,27.59940441,204.86,204.78,0.03]
[1738650665874,27.59940441,204.86,204.78,13.56733853]
[1738650666187,0.063,204.86,204.83,27.53640441]
[1738650666393,0.063,204.86,204.81,27.53640441]
[1738650666594,27.53640441,204.84,204.78,0.03]
[1738650666793,27.53640441,204.82,204.78,0.03]
[1738650667094,27.53640441,204.84,204.78,0.03]
[1738650667269,0.063,204.86,204.81,27.53640441]
[1738650667472,0.063,204.86,204.85,27.53640441]
[1738650667796,0.063,204.86,204.85,40.94825294]
[1738650668182,0.063,204.86,204.83,27.53640441]
[1738650669502,0.063,204.86,204.81,27.53640441]
[1738650670002,27.53640441,204.82,204.78,0.03]
[1738650670208,27.53640441,204.8,204.78,0.03]
[1738650670717,1.6084,204.82,204.78,0.03]
[1738650670887,0.063,204.86,204.79,44.60630656]
[1738650671202,0.063,204.86,204.81,44.60630656]
[1738650671785,0.063,204.86,204.83,44.60630656]
[1738650672502,0.063,204.86,204.85,44.60630656]
[1738650672704,0.063,204.86,204.85,58.01815509]
[1738650673200,0.063,204.86,204.83,44.60630656]
[1738650673589,0.063,204.86,204.81,64.60630656]
[1738650673906,0.063,204.86,204.83,44.60630656]
[1738650674407,0.063,204.86,204.85,44.60630656]
[1738650674789,0.063,204.86,204.83,44.60630656]
[1738650675204,0.063,204.86,204.81,64.60630656]
[1738650675399,0.063,204.86,204.83,44.60630656]
[1738650675908,0.063,204.86,204.84,13.41184853]
[1738650676906,0.063,204.86,204.85,44.60630656]
[1738650677082,0.063,204.86,204.85,58.26913509]
[1738650677411,0.063,204.86,204.85,59.00110521]
[1738650677911,0.0001,204.86,204.85,70.15510521]
[1738650678086,0.0001,204.86,204.85,183.10221307]
[1738650678291,0.063,204.94,204.93,58.26913509]
[1738650679409,0.063,204.94,204.93,63.14883509]
[1738650680205,0.063,204.98,204.94,13.66282853]
[1738650680511,0.063,204.98,204.97,58.26913509]
[1738650680887,0.063,205.07,205.0,0.12549]
[1738650681106,0.063,205.07,205.06,44.60630656]
[1738650681429,0.063,205.07,205.06,58.26913509]
[1738650681587,0.063,205.07,205.06,63.14573509]
[1738650681788,0.063,205.07,205.06,63.02024509]
[1738650682216,0.063,205.09,205.08,1.12549]
[1738650682394,0.063,205.12,205.11,58.26913509]
[1738650682604,0.063,205.12,205.11,60.22128427]
[1738650682882,0.063,205.12,205.11,13.66282853]
[1738650683121,0.063,205.12,205.11,14.39392193]
[1738650683585,0.063,205.12,205.11,19.26932193]
[1738650683986,0.063,205.12,205.11,13.66282853]
[1738650684412,0.063,205.12,205.11,14.39387411]
[1738650684714,0.063,205.12,205.11,13.66282853]
[1738650687217,0.063,205.12,205.1,44.60630656]
[1738650687412,0.063,205.12,205.08,44.60630656]
[1738650687918,0.063,205.12,205.06,44.60630656]
[1738650688118,44.66930656,205.12,205.04,44.60630656]
[1738650688713,44.60630656,205.1,205.01,4.94]
[1738650689117,44.60630656,205.08,205.01,4.94]
[1738650689325,4.8763,205.07,205.01,4.94]
[1738650690021,44.60630656,205.06,205.01,4.94]
[1738650690321,44.60630656,205.02,204.94,44.60630656]
[1738650690517,44.60630656,205.0,204.92,44.60630656]
[1738650691527,44.60630656,205.05,204.96,44.60630656]
[1738650691724,20.0,205.02,204.96,44.60630656]
[1738650691910,44.60630656,205.05,204.96,44.60630656]
[1738650692344,4.8766,205.06,205.0,44.60630656]
[1738650692517,44.60630656,205.11,205.02,44.60630656]
[1738650693252,20.0,205.1,205.04,44.60630656]
[1738650693408,4.9382,205.12,205.04,44.60630656]
[1738650693607,44.60630656,205.09,205.02,44.60630656]
[1738650694225,44.60630656,205.09,204.96,44.60630656]
[1738650694226,44.60630656,205.03,204.96,44.60630656]
[1738650694425,44.60630656,205.01,204.93,44.60630656]
[1738650694733,44.60630656,205.03,204.95,44.60630656]
[1738650695119,44.60630656,205.05,204.97,44.60630656]
[1738650695515,4.877,205.04,204.97,44.60630656]
[1738650696612,44.60630656,205.01,204.93,44.60630656]
[1738650697809,44.60630656,204.99,204.91,44.60630656]
[1738650698014,44.60630656,204.97,204.89,44.60630656]
[1738650698641,5.60508439,205.0,204.91,44.60630656]
[1738650698825,44.60630656,204.99,204.91,44.60630656]
[1738650699447,4.8785,204.98,204.91,44.60630656]
[1738650699648,44.60630656,204.97,204.89,44.60630656]
[1738650700434,44.60630656,204.95,204.87,44.60630656]
[1738650700633,44.60630656,204.91,204.83,44.63630656]
[1738650700837,44.60630656,204.91,204.89,0.03]
[1738650701024,44.60630656,204.93,204.89,0.03]
[1738650701228,44.60630656,204.97,204.89,44.63630656]
[1738650701429,4.879,204.96,204.89,44.63630656]
[1738650702737,44.60630656,204.97,204.89,44.63630656]
[1738650702933,20.0,204.96,204.91,44.60630656]
[1738650703533,24.879,204.96,204.89,44.63630656]
[1738650703737,24.879,204.96,204.89,41.97030656]
[1738650704428,4.8782,205.0,204.93,44.60630656]
[1738650704628,4.8782,205.0,204.93,27.39381533]
[1738650704845,27.39381533,204.95,204.83,0.03]
[1738650705048,27.39381533,204.88,204.83,0.03]
[1738650705562,27.39381533,204.9,204.83,0.03]
[1738650706739,64.56481808,204.9,204.83,0.03]
[1738650706939,64.56481808,204.9,204.83,44.59481808]
[1738650706940,20.0,204.9,204.83,44.59481808]
[1738650707140,20.0,204.9,204.85,44.56481808]
[1738650707330,4.8797,204.93,204.85,44.56481808]
[1738650707532,51.11581808,204.98,204.89,44.56481808]
[1738650707740,4.8778,205.01,204.95,44.56481808]
[1738650707944,4.8775,205.03,204.97,44.56481808]
[1738650708171,4.8772,205.04,204.97,44.56481808]
[1738650708669,49.44201808,205.04,204.97,44.56481808]
[1738650710670,49.44161808,205.06,204.99,44.56481808]
[1738650710840,49.44101808,205.08,204.99,44.56481808]
[1738650711047,49.44101808,205.08,205.01,44.56481808]
[1738650712044,49.44101808,205.08,204.99,44.56481808]
[1738650712244,44.56481808,205.02,204.95,44.56481808]
[1738650712871,44.56481808,205.0,204.93,44.56481808]
[1738650713187,44.56481808,205.0,204.92,18.41723853]
[1738650713387,44.56481808,205.02,204.94,13.53733853]
[1738650713589,0.063,205.04,204.97,44.56481808]
[1738650713768,0.063,205.04,204.99,44.56481808]
[1738650714387,0.063,205.04,204.97,44.56481808]
[1738650714388,44.62781808,205.04,204.97,44.56481808]
[1738650714556,44.56481808,205.02,204.93,44.56481808]
[1738650714956,44.56481808,205.0,204.93,44.56481808]
[1738650715775,0.063,205.04,204.97,44.56481808]
[1738650715981,0.063,205.04,204.99,44.56481808]
[1738650716961,0.063,205.04,205.03,44.56481808]
[1738650717572,0.063,205.04,205.03,57.97666661]
[1738650718197,0.063,205.04,205.03,44.81579808]
[1738650718376,0.063,205.04,205.03,58.958945]
[1738650719592,0.063,205.04,205.03,45.29611647]
[1738650720074,0.063,205.04,205.03,58.958945]
[1738650720391,0.063,205.04,205.03,63.898945]
[1738650720589,0.063,205.04,205.03,50.36160647]
[1738650720793,0.063,205.04,205.03,49.63030808]
[1738650720993,0.063,205.09,205.03,176.59900324]
[1738650721179,0.063,205.09,205.08,44.56481808]
[1738650721366,0.063,205.09,205.08,45.29598646]
[1738650721568,0.063,205.09,205.08,58.95881499]
[1738650721987,0.063,205.09,205.08,45.29598646]
[1738650722188,0.063,205.09,205.08,49.44091808]
[1738650722592,0.063,205.09,205.08,63.10374661]
[1738650723495,0.063,205.12,205.11,20.25098]
[1738650723688,0.063,205.15,205.14,13.53733853]
[1738650723885,0.063,205.15,205.14,58.83299206]
[1738650724698,0.063,205.15,205.14,49.43951808]
[1738650724872,0.063,205.15,205.12,49.43981808]
[1738650725073,0.063,205.15,205.14,44.56481808]
[1738650725971,0.063,205.15,205.14,58.22764661]
[1738650726177,0.063,205.15,205.14,58.95850284]
[1738650726497,0.063,205.19,205.14,58.95850284]
[1738650726498,0.063,205.19,205.18,20.12549]
[1738650726803,0.0001,205.19,205.18,90.02535921]
[1738650727000,0.063,205.25,205.23,13.66282853]
[1738650727208,0.063,205.25,205.24,0.7305474]
[1738650727705,0.063,205.25,205.24,28.17193083]
[1738650728002,0.063,205.25,205.24,46.58156936]
[1738650728209,0.063,205.25,205.24,33.04423083]
[1738650729022,0.063,205.25,205.24,32.91874083]
[1738650729220,0.063,205.25,205.24,28.04644083]
[1738650729522,0.063,205.25,205.21,27.31589343]
[1738650729683,0.063,205.25,205.23,27.31589343]
[1738650729886,0.063,205.25,205.24,0.73068444]
[1738650730079,0.063,205.25,205.24,14.39351297]
[1738650730698,0.063,205.3,205.28,20.25098]
[1738650731015,27.31589343,205.46,205.33,13.66282853]
[1738650731214,0.063,205.48,205.4,27.31589343]
[1738650731215,27.37889343,205.48,205.4,27.31589343]
[1738650731418,32.24559343,205.48,205.4,27.31589343]
[1738650731590,4.9297,205.48,205.42,27.31589343]
[1738650731934,0.063,205.48,205.44,27.31589343]
[1738650732117,0.063,205.48,205.47,27.31589343]
[1738650733120,0.063,205.48,205.45,27.31589343]
[1738650733295,0.063,205.48,205.43,27.31589343]
[1738650733619,27.31589343,205.45,205.37,27.31589343]
[1738650734183,27.31589343,205.41,205.33,27.31589343]
[1738650734387,27.31589343,205.39,205.32,4.92]
[1738650734603,44.34888391,205.39,205.32,24.92]
[1738650734993,13.41184853,205.44,205.33,44.34888391]
[1738650734994,44.34888391,205.41,205.33,44.34888391]
[1738650735206,44.34888391,205.43,205.37,44.34888391]
[1738650735400,44.34888391,205.45,205.37,44.34888391]
[1738650735748,44.34888391,205.41,205.33,44.34888391]
[1738650736826,44.34888391,205.37,205.28,44.34888391]
[1738650737125,5.59558439,205.4,205.27,44.34888391]
[1738650737126,44.34888391,205.35,205.27,44.34888391]
[1738650737300,44.34888391,205.33,205.25,44.34888391]
[1738650737501,0.03,205.41,205.32,44.34888391]
[1738650737711,0.03,205.41,205.27,13.66282853]
[1738650737908,0.03,205.41,205.36,44.34888391]
[1738650738310,0.03,205.41,205.38,44.34888391]
[1738650738733,0.03,205.41,205.4,44.34888391]
[1738650739920,0.03,205.41,205.36,44.34888391]
[1738650740518,0.03,205.41,205.34,44.34888391]
[1738650740828,44.37888391,205.41,205.32,44.34888391]
[1738650741537,44.37888391,205.41,205.34,44.34888391]
[1738650741711,0.03,205.41,205.36,44.34888391]
[1738650741901,0.03,205.41,205.4,44.34888391]
[1738650743227,0.03,205.41,205.36,44.34888391]
[1738650743409,4.8984,205.41,205.34,44.34888391]
[1738650743617,0.03,205.41,205.4,44.34888391]
[1738650743819,0.03,205.41,205.36,44.34888391]
[1738650745010,0.03,205.41,205.34,44.34888391]
[1738650745011,44.37888391,205.41,205.34,44.34888391]
[1738650745514,44.34888391,205.37,205.31,4.92]
[1738650745723,44.34888391,205.39,205.31,4.92]
[1738650746136,44.34888391,205.37,205.31,4.92]
[1738650746442,44.34888391,205.35,205.26,44.34888391]
[1738650746740,44.34888391,205.35,205.28,44.34888391]
[1738650746915,52.49748391,205.41,205.32,44.34888391]
[1738650747108,6.4881,205.41,205.36,44.34888391]
[1738650747298,0.03,205.41,205.38,44.34888391]
[1738650747499,0.03,205.41,205.36,44.34888391]
[1738650748006,0.03,205.41,205.38,44.34888391]
[1738650750225,0.03,205.41,205.32,44.34888391]
[1738650750226,44.34888391,205.39,205.32,44.34888391]
[1738650750432,44.34888391,205.39,205.3,44.34888391]
[1738650750641,44.34888391,205.37,205.28,44.41188391]
[1738650750812,44.34888391,205.35,205.28,44.41188391]
[1738650751010,44.34888391,205.33,205.28,0.063]
[1738650751334,0.03,205.41,205.31,44.34888391]
[1738650751632,0.03,205.41,205.37,44.34888391]
[1738650752437,44.37888391,205.41,205.28,116.6343]
[1738650752609,44.34888391,205.39,205.31,44.34888391]
[1738650753209,0.03,205.41,205.37,44.34888391]
[1738650753432,0.03,205.41,205.39,44.34888391]
[1738650753622,0.03,205.41,205.37,44.34888391]
[1738650754520,44.34888391,205.39,205.31,44.34888391]
[1738650754724,44.37888391,205.41,205.33,44.34888391]
[1738650755038,0.03,205.41,205.35,44.34888391]
[1738650755221,4.8983,205.41,205.35,44.34888391]
[1738650755622,49.24718391,205.41,205.33,44.34888391]
[1738650755811,0.03,205.41,205.37,44.34888391]
[1738650756009,0.03,205.41,205.39,44.34888391]
[1738650756717,0.03,205.41,205.4,58.74176277]
[1738650756947,0.063,205.48,205.43,20.0]
[1738650757112,0.063,205.48,205.47,44.34888391]
[1738650757314,0.063,205.48,205.47,49.21568391]
[1738650757515,0.063,205.48,205.47,62.75302244]
[1738650757744,0.063,205.48,205.47,49.21568391]
[1738650760168,0.063,205.48,205.47,62.75302244]
[1738650761668,0.063,205.48,205.47,49.21568391]
[1738650764965,0.063,205.48,205.47,44.34888391]
[1738650765147,0.063,205.48,205.4,44.34888391]
[1738650765148,44.41188391,205.48,205.4,44.34888391]
[1738650765664,44.41188391,205.48,205.38,44.34888391]
[1738650765665,44.34888391,205.46,205.38,44.34888391]
[1738650765865,44.34888391,205.44,205.36,44.34888391]
[1738650766041,44.34888391,205.46,205.38,44.34888391]
[1738650766241,64.34888391,205.46,205.4,44.34888391]
[1738650766458,64.34888391,205.46,205.35,9.7696]
[1738650766459,64.34888391,205.46,205.38,44.34888391]
[1738650766671,65.0759683,205.46,205.38,44.34888391]
[1738650767076,69.21608391,205.46,205.38,44.34888391]
[1738650767372,44.34888391,205.42,205.34,44.34888391]
[1738650767562,44.34888391,205.44,205.36,44.34888391]
[1738650768374,44.34888391,205.42,205.34,44.34888391]
[1738650768743,44.34888391,205.4,205.32,44.34888391]
[1738650768956,4.8687,205.39,205.32,44.34888391]
[1738650770186,20.0,205.41,205.36,44.34888391]
[1738650770844,20.0,205.41,205.34,44.34888391]
[1738650771297,44.34888391,205.38,205.3,44.34888391]
[1738650771986,44.34888391,205.4,205.32,44.34888391]
[1738650772186,4.868,205.43,205.36,44.34888391]
[1738650772759,45.0759683,205.42,205.34,44.34888391]
[1738650772961,44.34888391,205.42,205.34,44.34888391]
[1738650773165,4.8683,205.41,205.34,44.34888391]
[1738650773401,44.34888391,205.42,205.32,0.063]
[1738650773596,4.868,205.43,205.36,44.34888391]
[1738650775790,44.34888391,205.42,205.34,44.34888391]
[1738650776220,44.34888391,205.38,205.32,0.063]
[1738650776590,33.61815269,205.39,205.32,0.063]
[1738650777932,4.869,205.38,205.32,0.063]
[1738650778715,33.61815269,205.39,205.33,27.29375269]
[1738650778716,6.3244,205.39,205.33,27.29375269]
[1738650779117,6.3244,205.39,205.35,27.29375269]
[1738650779293,0.03,205.44,205.39,0.12549]
[1738650779492,0.03,205.44,205.43,27.29375269]
[1738650779893,0.03,205.44,205.43,32.16155269]
[1738650780398,0.03,205.44,205.43,27.29375269]
[1738650780602,0.03,205.44,205.43,44.30055484]
[1738650781511,0.03,205.44,205.41,44.30055484]
[1738650781826,0.03,205.44,205.43,44.30055484]
[1738650782130,0.03,205.44,205.41,44.30055484]
[1738650782616,0.03,205.44,205.43,44.30055484]
[1738650783026,0.03,205.44,205.41,44.30055484]
[1738650783207,0.03,205.44,205.4,4.9]
[1738650783405,0.03,205.44,205.37,156.00055484]
[1738650783924,44.30055484,205.42,205.35,44.30055484]
[1738650784099,45.05763923,205.44,205.35,44.30055484]
[1738650784910,44.30055484,205.42,205.35,44.30055484]
[1738650785229,4.8683,205.41,205.35,44.30055484]
[1738650786902,11.4075,205.43,205.35,44.30055484]
[1738650787116,11.4075,205.43,205.37,44.30055484]
[1738650787517,45.02763923,205.42,205.33,44.30055484]
[1738650787713,44.30055484,205.42,205.35,44.30055484]
[1738650787907,11.4075,205.43,205.35,44.30055484]
[1738650788110,12.13458439,205.43,205.35,44.30055484]
[1738650788430,11.4075,205.43,205.35,44.30055484]
[1738650788624,11.4075,205.43,205.37,44.30055484]
[1738650788822,6.5395,205.43,205.37,44.30055484]
[1738650789028,0.03,205.44,205.41,44.30055484]
[1738650789726,0.03,205.44,205.39,44.30055484]
[1738650789924,4.8976,205.44,205.39,44.30055484]
[1738650790126,49.19815484,205.44,205.37,44.30055484]
[1738650791628,4.8976,205.44,205.37,44.30055484]
[1738650791840,0.03,205.44,205.41,44.30055484]
[1738650792513,0.03,205.44,205.43,44.30055484]
[1738650792933,0.063,205.48,205.46,20.0]
[1738650793233,0.063,205.48,205.47,44.30055484]
[1738650793407,0.063,205.48,205.47,57.83789337]
[1738650793617,0.063,205.48,205.47,44.30055484]
[1738650793813,0.063,205.48,205.47,49.16735484]
[1738650794237,0.063,205.48,205.47,62.70469337]
[1738650794508,0.0001,205.48,205.47,63.55993978]
[1738650795210,0.0001,205.48,205.47,62.70469337]
[1738650795523,0.0001,205.48,205.47,44.30055484]
[1738650799115,0.0001,205.48,205.45,44.30055484]
[1738650799353,0.0001,205.48,205.43,4.8678]
[1738650799553,0.0001,205.48,205.47,44.30055484]
[1738650799919,0.0001,205.48,205.47,57.83789337]
[1738650800119,0.0001,205.48,205.47,62.70469337]
[1738650801035,0.0001,205.48,205.47,63.5599075]
[1738650802841,0.0001,205.48,205.47,46.49402819]
[1738650803311,0.063,205.52,205.51,60.77201406]
[1738650804453,0.063,205.52,205.51,65.63791406]
[1738650804848,0.063,205.52,205.51,24.8659]
[1738650805056,0.063,205.52,205.51,38.40323853]
[1738650805231,0.063,205.52,205.51,38.52872853]
[1738650805431,0.063,205.52,205.51,39.25832553]
[1738650805826,0.063,205.53,205.52,13.66282853]
[1738650806031,0.063,205.53,205.52,40.89750406]
[1738650806444,0.063,205.53,205.52,40.77201406]
[1738650809134,0.063,205.53,205.52,27.23467553]
[1738650809337,0.063,205.53,205.52,40.89750406]
[1738650809637,0.03,205.62,205.6,20.0]
[1738650809847,0.03,205.62,205.61,27.23467553]
[1738650810053,0.03,205.65,205.62,13.53733853]
[1738650810356,0.03,205.65,205.64,27.23467553]
[1738650811143,0.03,205.65,205.64,32.09747553]
[1738650811555,0.03,205.65,205.64,27.23467553]
[1738650811753,0.03,205.65,205.6,32.09827553]
[1738650812067,0.03,205.65,205.6,27.23467553]
[1738650812553,0.03,205.65,205.63,27.23467553]
[1738650813462,0.03,205.65,205.63,32.09767553]
[1738650814977,0.03,205.65,205.64,0.85476031]
[1738650815270,0.03,205.65,205.64,14.26660884]
[1738650815461,0.03,205.65,205.64,13.53733853]
[1738650815973,0.03,205.65,205.63,32.09767553]
[1738650820066,0.03,205.65,205.64,13.53733853]
[1738650820970,0.03,205.65,205.63,32.09767553]
[1738650821176,0.03,205.65,205.63,27.23467553]
[1738650821674,0.03,205.65,205.59,27.23467553]
[1738650821861,0.03,205.65,205.62,0.063]
[1738650822370,27.26467553,205.65,205.62,0.063]
[1738650822771,0.03,205.65,205.62,0.063]
[1738650823188,0.03,205.65,205.63,27.23467553]
[1738650824256,0.03,205.65,205.64,4.8628]
[1738650824873,0.03,205.65,205.62,0.063]
[1738650825175,6.193,205.65,205.62,0.063]
[1738650825556,34.15475992,205.65,205.62,0.063]
[1738650826181,27.23467553,205.63,205.62,0.063]
[1738650826398,32.82485992,205.63,205.62,0.063]
[1738650826753,32.09777553,205.63,205.62,0.063]
[1738650828678,6.193,205.65,205.62,0.063]
[1738650828863,0.03,205.65,205.62,0.063]
[1738650829063,0.03,205.65,205.64,27.23467553]
[1738650830682,0.03,205.65,205.62,0.063]
[1738650831071,27.23467553,205.64,205.62,0.063]
[1738650833760,32.09747553,205.64,205.62,0.063]
[1738650834985,0.72708439,205.63,205.62,0.063]
[1738650835167,14.13893292,205.63,205.62,0.063]
[1738650835366,15.79413292,205.63,205.62,0.063]
[1738650835871,16.91962292,205.63,205.62,0.063]
[1738650836571,15.79413292,205.63,205.62,0.063]
[1738650837283,20.65723292,205.63,205.62,0.063]
[1738650838068,6.5183,205.63,205.62,0.063]
[1738650838795,13.41184853,205.61,205.51,27.23467553]
[1738650838990,27.23467553,205.58,205.51,27.23467553]
[1738650839494,27.23467553,205.56,205.49,27.23467553]
[1738650839862,27.96175992,205.56,205.49,27.23467553]
[1738650840065,0.72708439,205.56,205.49,27.23467553]
[1738650840280,4.8645,205.57,205.49,27.23467553]
[1738650840790,34.48335992,205.58,205.51,27.23467553]
[1738650840791,32.82615992,205.58,205.51,27.23467553]
[1738650841086,27.96175992,205.56,205.47,32.16447553]
[1738650841475,27.23467553,205.52,205.47,0.063]
[1738650841665,13.41184853,205.55,205.47,0.063]
[1738650841666,35.33547553,205.5,205.47,0.063]
[1738650842181,27.23467553,205.51,205.47,0.063]
[1738650842503,27.96175992,205.51,205.47,0.063]
[1738650842792,27.23467553,205.49,205.47,0.063]
[1738650844369,32.10117553,205.49,205.47,0.063]
[1738650844765,14.13893292,205.48,205.47,0.063]
[1738650844986,0.72708439,205.48,205.47,0.063]
[1738650845184,32.82825992,205.49,205.47,0.063]
[1738650845392,13.41184853,205.48,205.47,0.063]
[1738650847385,32.82825992,205.49,205.47,0.063]
[1738650847586,20.0,205.46,205.41,0.063]
[1738650847791,27.23467553,205.43,205.41,0.063]
[1738650847985,0.72708439,205.42,205.41,0.063]
[1738650848476,5.59508439,205.42,205.41,0.063]
[1738650849080,20.13242292,205.42,205.41,0.063]
[1738650849281,13.53733853,205.38,205.32,0.063]
[1738650849476,27.23467553,205.34,205.32,0.063]
[1738650850195,0.72708439,205.37,205.32,0.063]
[1738650850571,27.23467553,205.36,205.32,0.063]
[1738650850779,0.72708439,205.35,205.32,0.063]
[1738650850982,27.23467553,205.34,205.32,0.063]
[1738650851494,27.23467553,205.38,205.32,0.063]
[1738650851693,0.72708439,205.39,205.32,0.063]
[1738650851694,27.23467553,205.34,205.32,0.063]
[1738650851882,0.72708439,205.33,205.32,0.063]
[1738650852074,20.31792292,205.33,205.32,0.063]
[1738650852680,20.0,205.29,205.28,0.063]
[1738650852986,62.37360845,205.29,205.28,0.063]
[1738650853393,34.13893292,205.29,205.28,0.063]
[1738650853589,27.96175992,205.3,205.28,0.063]
[1738650853897,0.72708439,205.29,205.28,0.063]
[1738650854585,27.23467553,205.3,205.28,0.063]
[1738650854780,0.72708439,205.29,205.28,0.063]
[1738650854980,32.10567553,205.3,205.28,0.063]
[1738650855192,0.72708439,205.29,205.28,0.063]
[1738650855599,15.26442292,205.29,205.28,0.063]
[1738650856001,1.0,205.27,205.26,0.0001]
[1738650856188,28.96175992,205.27,205.26,0.0001]
[1738650856876,47.37069845,205.27,205.26,0.0001]
[1738650857603,21.12549,205.23,205.15,0.063]
[1738650857899,27.23467553,205.16,205.15,0.063]
[1738650858501,27.96175992,205.16,205.15,0.063]
[1738650858686,42.49909845,205.16,205.15,0.063]
[1738650858885,32.83595992,205.16,205.15,0.063]
[1738650860201,27.23467553,205.16,205.15,0.063]
[1738650860591,27.96175992,205.16,205.15,0.063]
[1738650860786,41.49909845,205.16,205.15,0.063]
[1738650861103,42.49909845,205.16,205.15,0.063]
[1738650861990,42.49909845,205.16,205.11,0.063]
[1738650861991,20.12549,205.12,205.11,0.063]
[1738650862304,61.49909845,205.12,205.11,0.063]
[1738650863180,61.49909845,205.12,205.11,0.0001]
[1738650863512,33.41184853,205.08,205.07,0.063]
[1738650863691,61.37360845,205.08,205.07,0.063]
[1738650864200,66.24970845,205.08,205.07,0.063]
[1738650864381,0.72708439,205.11,205.07,0.063]
[1738650864705,4.8749,205.14,205.07,27.29767553]
[1738650864913,27.96175992,205.13,205.07,0.063]
[1738650865218,27.23467553,205.13,205.07,0.063]
[1738650866089,27.23467553,205.15,205.07,0.063]
[1738650866293,27.23467553,205.13,205.07,0.063]
[1738650867010,0.72708439,205.12,205.07,0.063]
[1738650867601,32.10977553,205.13,205.07,0.063]
[1738650867807,27.23467553,205.15,205.08,27.23467553]
[1738650868513,27.23467553,205.15,205.07,0.063]
[1738650869086,27.23467553,205.15,205.07,4.9393]
[1738650869411,27.23467553,205.15,205.08,27.23467553]
[1738650869589,27.23467553,205.17,205.08,27.23467553]
[1738650869790,27.23467553,205.17,205.1,27.23467553]